bitfinex/quotes_ETHUSD_20250724
["timestamp","ask_amount","ask_price","bid_price","bid_amount"]
[1753333783542,2.78034769,3596.7,3596.3,0.1384]
[1753333783745,2.78040585,3596.6,3596.3,0.1384]
[1753333783956,4.45,3596.8,3596.3,0.1384]
[1753333783957,4.45,3596.8,3596.3,2.91898182]
[1753333784157,4.45,3596.8,3596.6,0.1384]
[1753333784552,4.448,3597.0,3596.6,0.1384]
[1753333784759,4.448,3597.0,3596.6,3.7044749]
[1753333784958,0.1384,3597.4,3596.8,0.1384]
[1753333785195,0.1384,3597.4,3596.8,2.91864454]
[1753333785346,0.002,3597.6,3597.0,2.78004229]
[1753333785541,0.002,3597.6,3597.3,0.1384]
[1753333786251,4.454,3597.6,3597.3,2.91819493]
[1753333786451,0.002,3597.6,3597.4,2.77974411]
[1753333786852,0.002,3597.6,3597.3,0.8934]
[1753333787444,3.24215567,3597.5,3597.3,0.1384]
[1753333787645,0.4624,3597.4,3597.3,0.1384]
[1753333787965,0.4624,3597.4,3596.6,2.78039828]
[1753333787966,5.7199,3597.4,3597.0,0.1384]
[1753333788164,4.9104,3597.4,3597.0,0.1384]
[1753333788365,0.002,3597.6,3597.3,2.77979235]
[1753333788692,0.002,3597.6,3597.5,2.77970813]
[1753333788973,0.002,3597.6,3597.5,2.93878568]
[1753333789144,0.002,3597.6,3597.5,2.91810813]
[1753333791175,0.002,3597.6,3597.5,2.93878568]
[1753333791379,0.002,3597.6,3597.5,4.86485914]
[1753333791787,0.002,3597.6,3597.5,4.84418159]
[1753333791949,0.002,3597.6,3597.5,4.86485914]
[1753333792149,0.002,3597.6,3597.5,4.84418159]
[1753333793045,0.002,3597.6,3597.5,4.86485914]
[1753333793476,0.002,3597.6,3597.5,1.82697346]
[1753333793683,0.002,3597.6,3597.5,0.1384]
[1753333793684,0.4644,3597.6,3597.5,0.1384]
[1753333796089,0.002,3597.6,3597.5,0.1384]
[1753333799269,0.4644,3597.6,3597.5,0.1384]
[1753333799882,0.002,3597.6,3597.5,0.1384]
[1753333800484,0.002,3597.6,3597.5,2.91810813]
[1753333800656,0.002,3597.6,3597.5,4.28947614]
[1753333801065,0.002,3597.6,3597.5,4.26879859]
[1753333801284,0.002,3597.6,3597.5,0.9193]
[1753333801487,0.002,3597.6,3597.5,0.1384]
[1753333802288,0.002,3597.6,3597.5,3.74750813]
[1753333802690,0.002,3597.6,3597.5,0.9678]
[1753333802892,0.4644,3597.6,3597.5,0.1384]
[1753333805699,3.24403086,3597.6,3597.5,0.1384]
[1753333805902,2.7797854,3597.4,3597.3,0.1384]
[1753333806109,2.77992683,3597.3,3596.6,2.78034233]
[1753333806315,0.4624,3597.2,3597.0,0.1384]
[1753333806722,0.002,3597.6,3597.0,2.91842939]
[1753333807013,0.002,3597.6,3597.1,0.1384]
[1753333807216,0.4624,3597.5,3596.7,2.78029521]
[1753333807513,2.77981791,3597.4,3597.2,0.1384]
[1753333807662,0.4624,3597.5,3596.4,0.8099]
[1753333807663,2.77986267,3597.3,3596.4,3.5904559]
[1753333807858,4.446,3597.4,3596.9,2.78009606]
[1753333808102,4.9084,3597.4,3597.3,0.1384]
[1753333808392,7.6881854,3597.4,3597.3,0.1384]
[1753333808593,7.6881854,3597.4,3596.5,2.78046911]
[1753333808795,0.7538,3597.2,3597.0,0.1384]
[1753333809399,0.4678,3597.1,3597.0,0.1384]
[1753333809606,0.7538,3597.2,3597.0,0.1384]
[1753333809804,4.446,3597.4,3597.0,0.1384]
[1753333810098,0.4678,3597.2,3597.0,0.1384]
[1753333810998,5.1998,3597.4,3597.0,0.1384]
[1753333811198,4.446,3597.4,3597.0,0.1384]
[1753333811900,4.9138,3597.4,3597.0,0.1384]
[1753333812405,4.9138,3597.4,3597.0,2.91847075]
[1753333812623,4.9138,3597.4,3597.0,0.1384]
[1753333812807,0.4678,3597.3,3597.0,0.1384]
[1753333813111,0.4678,3597.2,3597.0,0.1384]
[1753333813465,7.22583298,3597.4,3597.0,0.1384]
[1753333813666,0.4678,3597.3,3597.0,0.1384]
[1753333813905,4.446,3597.4,3597.0,0.1384]
[1753333814100,3.24767032,3597.3,3597.0,0.1384]
[1753333814501,0.4678,3597.2,3597.0,0.1384]
[1753333814670,4.446,3597.3,3597.0,0.1384]
[1753333815001,0.4678,3597.5,3597.0,0.1384]
[1753333815221,4.446,3597.4,3597.0,2.91846517]
[1753333815572,3.24751088,3597.5,3597.0,0.1384]
[1753333815808,4.9138,3597.5,3597.0,0.1384]
[1753333815972,7.69351352,3597.5,3597.0,0.1384]
[1753333816168,4.446,3597.5,3597.2,2.77992077]
[1753333816406,0.002,3597.6,3597.4,0.7712]
[1753333816607,0.002,3597.6,3597.5,2.80038635]
[1753333816905,0.002,3597.6,3597.5,2.93878635]
[1753333817304,0.002,3597.6,3597.5,3.17628635]
[1753333817505,0.002,3597.6,3597.5,0.1384]
[1753333817682,3.24943086,3597.6,3597.5,0.1384]
[1753333817884,0.4698,3597.6,3597.1,0.1384]
[1753333818084,0.809,3597.2,3597.1,0.1384]
[1753333818270,2.78030042,3596.8,3596.6,0.1384]
[1753333818474,0.4678,3596.8,3596.6,0.1384]
[1753333818670,0.4678,3596.7,3596.6,0.1384]
[1753333819097,3.24812641,3596.7,3596.6,0.1384]
[1753333819894,0.4678,3596.7,3596.6,0.1384]
[1753333820082,4.445,3596.7,3596.6,0.1384]
[1753333821027,7.69312641,3596.7,3596.6,0.1384]
[1753333821879,8.51842641,3596.7,3596.6,0.1384]
[1753333822084,2.7805646,3596.4,3596.3,0.1384]
[1753333822585,0.4678,3596.4,3596.3,0.1384]
[1753333823610,5.2703,3596.7,3596.3,0.1384]
[1753333823814,4.445,3596.7,3596.3,0.1384]
[1753333824004,4.445,3596.6,3596.3,0.1384]
[1753333824402,2.78055833,3596.4,3596.3,0.1384]
[1753333824922,3.24835833,3596.4,3596.3,0.1384]
[1753333825618,2.78086687,3596.1,3596.0,0.1384]
[1753333826630,3.24866687,3596.1,3596.0,0.1384]
[1753333827116,2.78071649,3596.2,3596.0,0.1384]
[1753333827288,2.7807903,3596.1,3596.0,0.1384]
[1753333827905,3.2485903,3596.1,3596.0,0.1384]
[1753333828300,7.22572281,3596.2,3596.0,0.1384]
[1753333828517,4.445,3596.2,3596.0,0.1384]
[1753333829218,7.22572225,3596.2,3596.0,0.1384]
[1753333829426,2.7807903,3596.1,3596.0,0.1384]
[1753333829729,3.2485903,3596.1,3596.0,0.1384]
[1753333830619,4.444,3596.3,3596.0,0.1384]
[1753333830888,2.7807903,3596.1,3596.0,0.1384]
[1753333832115,2.78073284,3596.2,3596.0,0.1384]
[1753333832911,2.7807903,3596.1,3596.0,0.1384]
[1753333833331,2.78074135,3596.2,3596.0,0.1384]
[1753333833515,4.444,3596.3,3596.0,0.1384]
[1753333833830,2.78074285,3596.2,3596.0,0.1384]
[1753333834739,2.7807903,3596.1,3596.0,0.1384]
[1753333834911,2.7807411,3596.2,3596.0,0.1384]
[1753333835932,2.7807903,3596.1,3596.0,0.1384]
[1753333836320,2.78073913,3596.2,3596.0,0.1384]
[1753333836808,4.9118,3596.3,3596.0,0.1384]
[1753333837138,7.69244305,3596.3,3596.0,0.1384]
[1753333837325,2.78071297,3596.2,3596.0,0.1384]
[1753333837898,4.9118,3596.3,3596.0,0.1384]
[1753333837899,3.2485903,3596.1,3596.0,0.1384]
[1753333838635,7.6915903,3596.1,3596.0,0.1384]
[1753333840616,7.6915903,3596.1,3595.3,2.78236192]
[1753333840617,4.9108,3596.1,3595.3,0.001]
[1753333840929,2.78109964,3595.7,3595.6,0.1384]
[1753333841128,7.22309964,3595.7,3595.6,0.1384]
[1753333841329,7.65879964,3595.7,3595.6,0.1384]
[1753333841539,4.8777,3595.7,3595.6,0.1384]
[1753333841737,2.78099148,3595.9,3595.6,0.1384]
[1753333841910,4.442,3595.8,3595.6,0.1384]
[1753333842110,0.4357,3596.5,3595.6,0.29207258]
[1753333842328,7.22262731,3596.4,3595.7,2.94014707]
[1753333842524,7.22262731,3596.4,3596.0,0.1384]
[1753333842829,4.442,3596.3,3596.0,0.1384]
[1753333843514,7.22265231,3596.3,3596.0,0.1384]
[1753333843933,4.442,3596.2,3596.0,0.1384]
[1753333844733,7.22271341,3596.2,3596.0,0.1384]
[1753333844934,3.2164903,3596.1,3596.0,0.1384]
[1753333845633,0.4357,3596.1,3596.0,0.1384]
[1753333845805,3.2164903,3596.1,3596.0,0.1384]
[1753333846000,3.2164903,3596.1,3595.8,0.001]
[1753333846001,2.78094496,3595.9,3595.8,0.001]
[1753333846212,7.22194496,3595.9,3595.8,0.001]
[1753333846615,0.002,3596.3,3595.8,0.001]
[1753333846838,4.443,3596.3,3596.0,3.43014871]
[1753333847037,0.002,3596.3,3596.0,0.6493]
[1753333847204,0.002,3596.3,3596.1,0.02070528]
[1753333847539,0.002,3596.3,3596.0,3.43015965]
[1753333847734,0.002,3596.3,3596.0,4.05137945]
[1753333847932,0.002,3596.3,3596.2,2.78071297]
[1753333848619,0.002,3596.3,3596.2,2.80141564]
[1753333848821,0.002,3596.3,3596.2,3.68821564]
[1753333849712,0.002,3596.3,3596.2,3.66751297]
[1753333850034,0.002,3596.3,3596.2,4.13697221]
[1753333850563,0.002,3596.3,3596.2,4.15767488]
[1753333851829,0.002,3596.3,3596.2,4.13697221]
[1753333852030,0.002,3596.3,3596.2,4.15767488]
[1753333852429,3.21833565,3596.3,3595.8,0.001]
[1753333852748,0.4357,3596.2,3595.8,0.001]
[1753333853160,2.78073406,3596.2,3595.8,0.001]
[1753333853455,0.4357,3596.1,3595.8,0.001]
[1753333854155,2.78094496,3595.9,3595.8,0.001]
[1753333854561,3.21664496,3595.9,3595.8,0.001]
[1753333855184,0.4357,3595.9,3595.8,0.001]
[1753333855782,3.21664496,3595.9,3595.8,0.001]
[1753333856640,3.21664496,3595.9,3595.8,0.1394]
[1753333857243,0.4357,3595.9,3595.8,0.1394]
[1753333857442,2.78080136,3596.1,3595.8,0.1394]
[1753333857979,0.4357,3596.1,3595.8,0.1394]
[1753333859047,3.21649606,3596.1,3595.8,0.1394]
[1753333859247,2.78087647,3596.0,3595.8,0.1394]
[1753333859443,3.21657647,3596.0,3595.8,0.1394]
[1753333859678,0.4357,3595.9,3595.8,0.1394]
[1753333859898,3.21664496,3595.9,3595.8,0.1394]
[1753333860465,0.4357,3595.9,3595.8,0.1394]
[1753333861180,0.03475891,3596.2,3595.8,0.1394]
[1753333861181,0.002,3596.3,3595.8,0.7887]
[1753333861337,0.806,3596.2,3595.8,0.001]
[1753333861534,0.002,3596.3,3596.1,0.1384]
[1753333861780,1e-08,3596.3,3596.2,3.45071632]
[1753333862085,0.1384,3598.0,3597.0,3.42939452]
[1753333862381,1e-08,3597.1,3597.0,8.62675266]
[1753333862574,0.002,3598.1,3597.5,3.42900813]
[1753333862754,0.002,3598.1,3597.7,2.7795536]
[1753333863138,0.002,3598.1,3597.7,3.0170536]
[1753333863345,0.002,3598.1,3597.7,2.7795536]
[1753333863552,0.002,3598.1,3597.7,3.42108345]
[1753333863764,0.002,3598.1,3597.7,3.40040977]
[1753333864869,0.4377,3597.8,3597.2,4.436]
[1753333865180,0.4377,3597.8,3596.8,0.6493]
[1753333865349,0.8201,3597.6,3596.7,2.78032641]
[1753333865685,0.8201,3597.6,3596.8,2.78024911]
[1753333865686,0.4357,3597.5,3596.8,2.78024911]
[1753333865843,0.4357,3597.5,3596.6,2.78038639]
[1753333866043,0.4357,3597.5,3596.9,2.78016295]
[1753333866244,0.4357,3597.5,3597.0,2.78009393]
[1753333866883,0.4357,3597.4,3596.9,2.78015441]
[1753333867187,3.59974871,3597.6,3596.5,2.78044629]
[1753333867188,2.77997491,3597.2,3596.5,2.78044629]
[1753333867391,0.8173,3597.1,3596.4,4.436]
[1753333867680,0.4357,3597.0,3596.5,2.78044942]
[1753333867862,0.03475021,3597.1,3596.2,4.435]
[1753333868064,0.4357,3597.5,3596.9,2.78011926]
[1753333868254,0.4357,3597.5,3596.8,2.78018363]
[1753333868568,0.4357,3597.5,3596.4,2.78055833]
[1753333868768,0.4357,3597.5,3596.2,4.435]
[1753333868769,0.4357,3597.5,3596.9,2.7801076]
[1753333868993,3.21541954,3597.5,3596.8,2.7802239]
[1753333869273,0.002,3597.6,3596.6,2.78038842]
[1753333869274,0.46984731,3597.4,3596.6,2.78038842]
[1753333869447,0.46984731,3597.4,3596.4,2.78051797]
[1753333869642,0.46984731,3597.4,3596.5,2.78045313]
[1753333870038,0.46984731,3597.4,3596.3,4.435]
[1753333870039,0.8026,3597.3,3596.3,4.435]
[1753333870289,0.4351,3597.2,3596.3,5.15657945]
[1753333870499,0.4351,3597.2,3596.6,2.78033178]
[1753333870771,0.4351,3597.2,3596.6,2.78038232]
[1753333871367,0.4351,3597.2,3596.3,5.15657945]
[1753333871870,2.78002932,3597.1,3596.3,5.15657945]
[1753333872183,0.4351,3597.0,3596.4,2.78050673]
[1753333872359,0.4351,3597.0,3596.5,2.78047672]
[1753333872677,0.4351,3597.0,3596.7,0.1384]
[1753333872881,2.78003708,3597.1,3596.7,0.1384]
[1753333873083,0.4351,3596.9,3596.7,0.1384]
[1753333873283,0.002,3597.6,3596.8,0.6493]
[1753333873482,0.002,3597.6,3597.1,2.77996347]
[1753333873789,0.002,3597.6,3597.4,0.1384]
[1753333874379,0.002,3597.6,3597.5,2.77970813]
[1753333874949,0.002,3597.6,3597.5,2.72970813]
[1753333876169,0.4371,3597.6,3596.8,0.6493]
[1753333876369,0.4371,3597.6,3597.4,2.77971028]
[1753333876680,0.4371,3597.6,3597.2,2.77991324]
[1753333877093,0.4371,3597.6,3596.9,2.78010026]
[1753333877094,0.4371,3597.6,3597.1,2.77998762]
[1753333877388,0.4371,3597.6,3597.2,2.77993185]
[1753333877588,0.4371,3597.6,3597.1,2.80067427]
[1753333877962,0.4371,3597.6,3597.1,2.80069883]
[1753333878157,0.4371,3597.6,3597.2,2.77993199]
[1753333878357,0.4371,3597.6,3597.2,2.77993995]
[1753333878885,0.4371,3597.6,3597.1,2.77999725]
[1753333879456,0.4371,3597.6,3597.1,2.78001723]
[1753333879654,0.4371,3597.6,3597.2,2.77993151]
[1753333880092,0.4371,3597.6,3597.1,2.77998734]
[1753333880969,0.4371,3597.6,3597.0,2.78007146]
[1753333881158,0.4371,3597.6,3596.9,2.80080405]
[1753333881357,3.21677852,3597.6,3597.0,2.78008326]
[1753333881688,3.21677852,3597.6,3596.9,0.02068439]
[1753333881990,0.4371,3597.6,3597.0,2.78008504]
[1753333882390,0.4371,3597.6,3597.1,2.78001337]
[1753333882693,0.7678,3597.2,3595.9,5.3593]
[1753333882858,2.78011376,3597.0,3595.9,0.6493]
[1753333883057,2.78011376,3597.0,3596.3,2.78056378]
[1753333883285,3.21517946,3597.1,3595.9,0.6493]
[1753333883466,7.64717946,3597.1,3596.4,2.78050301]
[1753333883663,4.8671,3597.1,3596.2,2.78065876]
[1753333883864,2.78017181,3596.9,3596.0,0.81007763]
[1753333884108,2.78017181,3596.9,3596.2,2.78065971]
[1753333884391,0.4351,3597.0,3596.4,2.78055404]
[1753333884573,3.21521144,3597.0,3596.4,2.78055404]
[1753333884780,2.78025203,3596.8,3596.0,8.02292983]
[1753333885080,2.78019328,3596.9,3596.2,2.78070046]
[1753333885262,2.78019328,3596.9,3596.1,0.86732298]
[1753333885461,3.2152168,3597.0,3596.1,0.86732298]
[1753333885660,3.2152168,3597.0,3596.3,2.78057834]
[1753333885859,2.78017605,3596.9,3596.3,2.78057834]
[1753333886260,0.4351,3596.9,3596.7,0.1384]
[1753333886693,0.4351,3596.8,3596.7,0.1384]
[1753333886860,3.21534911,3596.8,3596.7,0.1384]
[1753333887404,0.4351,3596.8,3596.7,0.1384]
[1753333888605,3.21534911,3596.8,3596.7,0.1384]
[1753333889299,0.4351,3596.8,3596.7,0.1384]
[1753333889667,3.21534911,3596.8,3596.7,0.1384]
[1753333890204,0.7678,3597.2,3596.7,0.1384]
[1753333890380,4.431,3597.1,3597.0,0.1384]
[1753333890795,0.7678,3597.2,3597.0,0.1384]
[1753333890993,4.431,3597.4,3597.0,0.1384]
[1753333891368,4.431,3597.4,3597.2,0.1384]
[1753333891369,0.4351,3597.3,3597.2,0.1384]
[1753333891572,3.24971095,3597.3,3596.6,0.001]
[1753333891811,2.78032641,3596.7,3596.6,0.001]
[1753333891996,8.02332641,3596.7,3596.6,0.001]
[1753333892196,8.45842641,3596.7,3596.6,0.001]
[1753333892604,5.78086763,3596.0,3595.9,0.001]
[1753333892800,6.59386763,3596.0,3595.9,0.001]
[1753333893107,7.02896763,3596.0,3595.9,0.001]
[1753333894472,11.45896763,3596.0,3595.9,0.001]
[1753333895369,1.2481,3596.0,3595.9,0.001]
[1753333895574,2.78166518,3597.6,3595.9,0.001]
[1753333895575,1.2341,3596.4,3595.9,0.001]
[1753333895776,3.21596763,3596.0,3595.9,0.001]
[1753333896113,0.4351,3596.0,3595.9,0.001]
[1753333896778,3.21596763,3596.0,3595.9,0.001]
[1753333896971,3.98846763,3596.0,3595.9,0.001]
[1753333897377,8.41846763,3596.0,3595.9,0.001]
[1753333898974,41.41846763,3596.0,3595.9,0.001]
[1753333899380,2.7813317,3595.4,3595.3,0.001]
[1753333899580,17.41803459,3595.4,3595.3,0.001]
[1753333899879,17.83636795,3595.4,3595.3,0.001]
[1753333900125,11.4164317,3595.4,3595.3,0.001]
[1753333900715,5.181,3595.4,3595.3,0.001]
[1753333900911,3.23416355,3595.8,3595.3,0.001]
[1753333900912,4.429,3595.5,3595.3,0.001]
[1753333901300,4.429,3595.5,3595.3,2.78239935]
[1753333901519,0.4531,3595.8,3595.5,2.78120043]
[1753333901820,4.429,3595.7,3595.5,2.78120043]
[1753333902003,0.8904,3596.1,3595.4,0.1591161]
[1753333902314,0.7944,3596.6,3596.0,0.1384]
[1753333902475,4.429,3596.5,3596.1,2.78072931]
[1753333902678,0.4531,3596.4,3596.3,0.1384]
[1753333903211,0.4531,3596.4,3595.6,0.6493]
[1753333903417,4.429,3596.5,3596.2,0.1384]
[1753333903632,4.429,3596.6,3596.2,0.1384]
[1753333903927,4.429,3596.6,3596.4,2.91895007]
[1753333904109,4.429,3596.6,3596.4,0.1384]
[1753333904421,4.429,3596.6,3596.4,2.91894972]
[1753333904620,4.429,3596.6,3596.4,0.1384]
[1753333904917,4.429,3596.7,3596.4,2.9189568]
[1753333905279,0.901,3597.0,3596.4,2.9189568]
[1753333905486,4.429,3596.9,3596.5,2.78040533]
[1753333906228,0.901,3597.0,3596.4,0.1384]
[1753333906407,4.428,3597.0,3596.7,0.1384]
[1753333906630,0.1384,3597.3,3596.7,0.1384]
[1753333906797,4.428,3597.2,3596.9,2.91850479]
[1753333907141,1.2511,3597.4,3596.9,2.91850479]
[1753333907142,4.428,3597.4,3596.9,2.91850479]
[1753333907298,4.428,3597.4,3597.2,2.77988029]
[1753333907501,4.428,3597.4,3597.0,2.78009452]
[1753333907816,3.23303643,3597.3,3596.9,0.1384]
[1753333908201,2.77993643,3597.3,3596.9,0.1384]
[1753333908407,3.26783944,3597.2,3596.9,0.1384]
[1753333908602,0.48784924,3597.2,3596.9,0.1384]
[1753333908808,0.7889,3597.0,3595.7,5.0763]
[1753333909106,3.2333348,3596.9,3596.5,0.1384]
[1753333909318,4.91485311,3596.8,3596.5,0.1384]
[1753333909631,3.23342641,3596.7,3596.5,0.1384]
[1753333909924,0.4531,3596.7,3596.5,0.1384]
[1753333911127,0.4531,3596.6,3596.5,0.1384]
[1753333911432,0.4531,3596.6,3595.6,2.7811321]
[1753333911433,0.754,3595.8,3595.4,0.1384]
[1753333911742,0.4531,3595.7,3595.4,0.1384]
[1753333912228,0.4531,3595.6,3595.4,0.1384]
[1753333912431,3.23435434,3595.5,3595.4,0.1384]
[1753333912603,2.7813317,3595.4,3595.3,0.001]
[1753333912804,3.2344317,3595.4,3595.3,0.001]
[1753333914153,7.6604317,3595.4,3595.3,0.001]
[1753333914512,7.7988317,3595.4,3595.3,0.001]
[1753333915516,7.6604317,3595.4,3595.3,0.001]
[1753333918057,7.7988317,3595.4,3595.3,0.001]
[1753333918438,7.6604317,3595.4,3595.3,0.001]
[1753333919265,4.8791,3595.4,3595.3,0.001]
[1753333919444,7.6604317,3595.4,3595.3,0.001]
[1753333919645,3.2344317,3595.4,3595.3,0.001]
[1753333919846,8.4392317,3595.4,3595.3,0.001]
[1753333920068,8.5776317,3595.4,3595.3,0.001]
[1753333922353,4.1526317,3595.4,3595.3,0.001]
[1753333922543,8.5776317,3595.4,3595.3,0.001]
[1753333923554,8.1245317,3595.4,3595.3,0.001]
[1753333923949,0.1384,3595.4,3595.3,0.001]
[1753333924165,4.16710688,3595.7,3595.3,0.001]
[1753333924368,4.425,3595.6,3595.4,0.1384]
[1753333924569,4.425,3595.5,3595.4,0.1384]
[1753333924743,4.8781,3595.5,3595.3,0.001]
[1753333924944,7.20627168,3595.5,3595.3,0.001]
[1753333925178,2.7813317,3595.4,3595.3,0.001]
[1753333925381,3.26919834,3595.4,3595.3,0.001]
[1753333925581,4.1673317,3595.4,3595.3,0.001]
[1753333926273,5.2195,3595.4,3595.3,0.001]
[1753333926478,5.6726,3595.4,3595.3,0.001]
[1753333926781,4.424,3595.4,3595.3,0.001]
[1753333926989,4.424,3595.4,3595.3,0.1394]
[1753333928297,0.7795,3595.7,3595.3,0.1394]
[1753333928462,4.424,3595.6,3595.3,0.1394]
[1753333928660,4.424,3595.5,3595.3,2.92079312]
[1753333928859,4.424,3595.5,3595.3,0.1394]
[1753333929057,3.2344317,3595.4,3595.3,0.001]
[1753333930197,4.0242317,3595.4,3595.3,0.001]
[1753333930417,4.05899834,3595.4,3595.3,0.001]
[1753333930565,4.0242317,3595.4,3595.3,0.001]
[1753333930965,0.4531,3595.4,3595.3,0.001]
[1753333931216,3.2344317,3595.4,3595.3,0.001]
[1753333932080,0.4531,3595.4,3595.3,0.001]
[1753333932283,4.423,3595.4,3595.3,0.001]
[1753333933002,7.68639834,3595.4,3595.3,0.001]
[1753333933202,7.6516317,3595.4,3595.3,0.001]
[1753333933984,8.4738317,3595.4,3595.3,0.001]
[1753333939285,41.4738317,3595.4,3595.3,0.001]
[1753333941009,11.4738317,3595.4,3595.3,1e-08]
[1753333941180,11.4738317,3595.4,3595.1,0.04]
[1753333941181,3.53798642,3595.2,3595.1,0.04]
[1753333941508,7.993755,3595.2,3595.1,0.04]
[1753333941716,3.33156379,3595.1,3594.5,0.001]
[1753333941900,3.33156379,3595.1,3594.0,0.004]
[1753333941901,33.5387603,3594.2,3594.0,0.004]
[1753333942100,36.5387603,3594.2,3594.0,0.004]
[1753333942417,3.9860603,3594.2,3594.0,0.004]
[1753333942614,0.1384,3594.4,3594.0,0.004]
[1753333942786,7.20319864,3594.3,3594.0,0.004]
[1753333943002,7.20319229,3594.3,3594.0,0.004]
[1753333943205,7.8878,3594.6,3594.0,0.004]
[1753333943206,2.7822603,3594.2,3594.0,0.004]
[1753333943419,7.23803855,3594.2,3594.0,0.004]
[1753333943624,2.78233772,3594.1,3594.0,1e-08]
[1753333943804,36.98863772,3594.1,3594.0,1e-08]
[1753333944806,41.40963772,3594.1,3594.0,1e-08]
[1753333945013,36.98863772,3594.1,3594.0,1e-08]
[1753333945332,41.40963772,3594.1,3594.0,1e-08]
[1753333946315,37.38285335,3594.1,3594.0,1e-08]
[1753333946518,11.40963772,3594.1,3594.0,1e-08]
[1753333946905,41.40963772,3594.1,3594.0,1e-08]
[1753333948127,2.78249255,3593.9,3593.8,0.001]
[1753333948329,44.43300995,3593.9,3593.8,0.001]
[1753333948529,47.8455288,3593.9,3593.8,0.001]
[1753333948923,43.4245288,3593.9,3593.8,0.001]
[1753333949141,47.8455288,3593.9,3593.8,0.001]
[1753333949344,43.4245288,3593.9,3593.8,0.001]
[1753333949507,47.8455288,3593.9,3593.8,0.001]
[1753333950206,3.58403462,3593.2,3593.1,0.04]
[1753333950406,8.00503462,3593.2,3593.1,0.04]
[1753333950708,4.03133462,3593.2,3593.1,0.04]
[1753333950931,8.45233462,3593.2,3593.1,0.04]
[1753333951237,11.45233462,3593.2,3593.1,0.04]
[1753333951438,3.0,3593.1,3592.5,0.1364]
[1753333951643,2.78326699,3592.9,3592.5,0.1364]
[1753333951847,2.78349941,3592.6,3592.5,0.1364]
[1753333952029,10.20449941,3592.6,3592.5,0.1364]
[1753333952230,0.7864,3592.5,3592.1,0.04]
[1753333952428,2.78334446,3592.8,3592.2,0.6493]
[1753333952629,2.7831629,3593.1,3592.4,2.78365438]
[1753333952832,4.45578986,3593.0,3592.4,0.6493]
[1753333953139,4.45578986,3593.0,3592.1,0.04]
[1753333953140,2.78380936,3592.2,3592.1,0.04]
[1753333953300,7.20480936,3592.2,3592.1,0.04]
[1753333953509,41.43920936,3592.2,3592.1,0.04]
[1753333953706,5.78404187,3591.9,3591.8,0.004]
[1753333953943,7.422,3591.9,3591.8,0.004]
[1753333954242,0.7871,3592.2,3591.8,0.004]
[1753333954443,0.72669861,3593.9,3591.8,0.004]
[1753333954444,30.0,3592.5,3591.8,0.004]
[1753333954739,6.55853252,3593.2,3591.8,0.004]
[1753333954740,13.86543625,3593.8,3592.0,0.6493]
[1753333954924,2.78349265,3592.7,3592.0,0.6493]
[1753333955127,4.90309374,3592.6,3592.0,0.6493]
[1753333955324,0.4473,3592.6,3592.0,0.6493]
[1753333955540,4.421,3592.5,3591.8,0.004]
[1753333955737,2.78388344,3592.2,3591.8,0.004]
[1753333955940,2.78404187,3591.9,3591.8,0.004]
[1753333956113,7.20504187,3591.9,3591.8,0.004]
[1753333956321,4.8683,3591.9,3591.8,0.004]
[1753333957240,4.8693,3591.9,3591.8,0.004]
[1753333957450,10.65334187,3591.9,3591.8,0.004]
[1753333957651,3.4473,3591.9,3591.8,0.004]
[1753333957853,4.422,3591.9,3591.8,0.004]
[1753333958058,4.421,3591.9,3591.8,0.004]
[1753333958823,0.7565,3592.4,3591.8,0.004]
[1753333959029,4.421,3592.3,3591.8,0.004]
[1753333959230,2.78307163,3593.2,3591.8,0.004]
[1753333959231,1.208,3592.8,3591.8,0.004]
[1753333959447,0.7788,3592.8,3591.9,0.2395]
[1753333959757,7.23927933,3592.7,3591.9,3.02351784]
[1753333959937,2.78356493,3592.6,3592.0,2.78396029]
[1753333960253,2.78373187,3592.3,3591.8,0.004]
[1753333960563,4.45679761,3592.2,3591.8,0.004]
[1753333960758,0.46399761,3592.2,3591.8,0.004]
[1753333960946,2.78400555,3592.0,3591.8,0.004]
[1753333961151,0.4292,3592.9,3591.8,0.004]
[1753333961348,3.0,3592.7,3591.9,2.78399262]
[1753333961553,0.8018,3592.8,3591.9,0.58116811]
[1753333961727,4.422,3592.7,3592.1,2.78387801]
[1753333962258,0.1384,3592.8,3592.2,0.1384]
[1753333962459,6.46093625,3593.9,3592.2,0.1384]
[1753333962460,0.1384,3593.1,3592.6,3.43279941]
[1753333962663,0.1384,3593.3,3592.7,0.1384]
[1753333962835,4.422,3593.2,3592.9,2.7832161]
[1753333963030,4.422,3593.2,3593.0,2.92158342]
[1753333963423,4.422,3593.2,3593.0,0.1384]
[1753333963629,0.03478599,3593.4,3593.0,0.1384]
[1753333963830,4.422,3593.3,3593.0,0.1384]
[1753333964162,0.03478599,3593.4,3593.0,0.1384]
[1753333964163,0.03478599,3593.4,3593.1,2.78311207]
[1753333964342,4.422,3593.3,3593.1,2.78311207]
[1753333964538,0.1384,3593.7,3593.0,2.92156489]
[1753333964743,4.45678406,3593.6,3593.0,0.1384]
[1753333964957,2.78285089,3593.5,3593.0,0.1384]
[1753333965151,0.03478599,3593.4,3593.0,0.1384]
[1753333965461,4.422,3593.3,3593.0,0.1384]
[1753333965662,4.421,3593.2,3593.0,2.92156166]
[1753333966052,4.421,3593.2,3593.0,0.1384]
[1753333966252,3.03478502,3593.5,3593.0,0.1384]
[1753333966574,7.20393652,3593.4,3593.0,0.1384]
[1753333966794,0.03478696,3593.3,3593.0,0.1384]
[1753333967273,4.421,3593.2,3593.0,0.1384]